bitfinex-derivatives/quotes_BTCF0:USTF0_20240923
["timestamp","ask_amount","ask_price","bid_price","bid_amount"]
[1727075117578,0.098,63672.0,63671.0,0.06271935]
[1727075117885,0.100523,63672.0,63671.0,0.06371935]
[1727075118072,0.180523,63672.0,63671.0,0.06371935]
[1727075118278,0.182523,63672.0,63671.0,0.06471935]
[1727075120173,0.182523,63672.0,63671.0,0.002]
[1727075120478,0.104,63672.0,63671.0,0.002]
[1727075120670,0.104,63672.0,63671.0,0.06471935]
[1727075120867,0.104,63672.0,63671.0,0.42551935]
[1727075123785,0.104,63672.0,63671.0,0.3628]
[1727075125880,0.024,63672.0,63671.0,0.441324]
[1727075126085,0.024,63672.0,63671.0,0.50404335]
[1727075127175,0.024,63672.0,63671.0,0.441324]
[1727075127375,0.078513,63681.0,63676.0,0.078517]
[1727075127591,0.078513,63681.0,63671.0,0.3628]
[1727075127592,0.078513,63681.0,63680.0,0.40782811]
[1727075127890,0.078513,63681.0,63680.0,0.3608]
[1727075128982,0.092513,63681.0,63680.0,0.3618]
[1727075129578,0.176513,63681.0,63680.0,0.3618]
[1727075129893,0.176513,63681.0,63680.0,0.001]
[1727075130387,0.176513,63681.0,63680.0,0.002]
[1727075131577,0.20197421,63681.0,63680.0,0.002]
[1727075133591,0.29727421,63681.0,63680.0,0.002]
[1727075136881,0.29727421,63681.0,63667.0,0.06270414]
[1727075136882,0.69629674,63681.0,63667.0,0.04701288]
[1727075137082,0.08,63668.0,63667.0,0.04701288]
[1727075137282,0.08,63668.0,63666.0,0.48746288]
[1727075137483,0.08,63668.0,63666.0,0.48634288]
[1727075137890,0.08,63668.0,63667.0,0.04701288]
[1727075138094,0.08,63670.0,63667.0,0.12654188]
[1727075138688,0.005,63668.0,63667.0,0.12554188]
[1727075139588,0.005,63668.0,63667.0,0.26119473]
[1727075140291,0.005,63668.0,63667.0,0.26019473]
[1727075140599,0.011,63668.0,63667.0,0.26119473]
[1727075140784,0.006,63668.0,63667.0,0.26119473]
[1727075140984,0.006,63668.0,63667.0,0.26219473]
[1727075141495,0.013,63668.0,63667.0,0.26219473]
[1727075142186,0.013,63668.0,63667.0,0.62299473]
[1727075142499,0.013,63668.0,63667.0,1.61570476]
[1727075142998,0.013,63668.0,63667.0,1.70975053]
[1727075143686,0.013,63668.0,63667.0,1.61556256]
[1727075144297,0.013,63668.0,63667.0,1.01556256]
[1727075146494,0.013,63668.0,63667.0,0.912529]
[1727075146891,0.013,63668.0,63667.0,1.273329]
[1727075149397,0.07834139,63678.0,63667.0,1.87327657]
[1727075149596,0.078514,63680.0,63677.0,0.40788597]
[1727075149900,0.17364139,63681.0,63678.0,0.04708185]
[1727075149901,0.078514,63679.0,63678.0,0.04708185]
[1727075150698,0.078514,63679.0,63678.0,0.04707749]
[1727075151397,0.084514,63679.0,63678.0,0.12659349]
[1727075151792,0.164514,63679.0,63678.0,0.12659349]
[1727075152503,0.164514,63679.0,63678.0,0.080516]
[1727075152504,0.006,63679.0,63678.0,0.080516]
[1727075152709,0.006,63679.0,63678.0,0.1432973]
[1727075154104,0.07851,63683.0,63679.0,0.078514]
[1727075154307,0.07851,63683.0,63680.0,0.04705729]
[1727075154501,0.07851,63683.0,63680.0,0.12553386]
[1727075154813,0.07851,63683.0,63680.0,0.07847657]
[1727075156211,0.07851,63683.0,63680.0,0.078512]
[1727075156705,0.07851,63683.0,63680.0,0.079512]
[1727075156910,0.07851,63683.0,63681.0,0.078511]
[1727075157504,0.07851,63683.0,63682.0,0.3608]
[1727075158407,0.07851,63683.0,63681.0,0.079511]
[1727075158606,0.07851,63683.0,63682.0,0.3608]
[1727075158814,0.07851,63683.0,63682.0,0.3618]
[1727075160108,0.07851,63683.0,63682.0,0.4245199]
[1727075160306,0.07851,63683.0,63682.0,0.3628]
[1727075160511,0.07851,63683.0,63682.0,0.42551995]
[1727075161613,0.07851,63683.0,63682.0,0.3628]
[1727075163404,0.15685139,63683.0,63682.0,0.3628]
[1727075163704,0.07851,63683.0,63682.0,0.3628]
[1727075164314,0.43931,63683.0,63682.0,0.002]
[1727075164516,0.078518,63677.0,63671.0,0.04703708]
[1727075164717,0.08,63672.0,63670.0,0.078525]
[1727075166212,0.08,63672.0,63671.0,0.078524]
[1727075169023,0.08,63672.0,63671.0,0.439324]
[1727075170112,0.1265,63675.0,63672.0,0.078523]
[1727075170313,0.43909241,63686.0,63671.0,0.3608]
[1727075170314,0.08,63678.0,63674.0,0.14272735]
[1727075170518,0.08,63678.0,63676.0,0.14124535]
[1727075170720,0.08,63678.0,63677.0,0.06272735]
[1727075171225,0.158516,63678.0,63677.0,0.06272735]
[1727075172119,0.158516,63678.0,63677.0,0.3608]
[1727075173025,0.158516,63678.0,63677.0,0.3628]
[1727075175825,0.158516,63678.0,63677.0,0.002]
[1727075179812,0.207316,63678.0,63677.0,0.002]
[1727075181115,0.568116,63678.0,63677.0,0.002]
[1727075181725,0.207316,63678.0,63677.0,0.002]
[1727075181927,0.568116,63678.0,63677.0,0.002]
[1727075182319,0.488116,63678.0,63677.0,0.002]
[1727075182519,0.568116,63678.0,63677.0,0.002]
[1727075184829,0.078516,63678.0,63677.0,0.002]
[1727075190823,0.078516,63678.0,63677.0,0.04906404]
[1727075191025,0.078516,63678.0,63677.0,0.002]
[1727075191531,0.078516,63678.0,63677.0,0.04906404]
[1727075191734,0.078516,63678.0,63677.0,0.002]
[1727075195231,0.08,63681.0,63677.0,0.080517]
[1727075195439,0.08,63681.0,63679.0,0.0627929]
[1727075196237,0.078513,63680.0,63679.0,0.0627929]
[1727075197326,0.078513,63680.0,63679.0,0.0637929]
[1727075199038,0.078513,63680.0,63679.0,0.0647929]
[1727075199734,0.078513,63680.0,63679.0,0.002]
[1727075201932,0.078513,63680.0,63679.0,0.06479394]
[1727075204231,0.158513,63680.0,63679.0,0.06479394]
[1727075206731,0.23680541,63680.0,63679.0,0.002]
[1727075208136,0.158513,63680.0,63679.0,0.002]
[1727075208337,0.23674916,63680.0,63679.0,0.002]
[1727075209946,0.158513,63680.0,63679.0,0.002]
[1727075210448,0.23674248,63680.0,63679.0,0.002]
[1727075210647,0.078519,63675.0,63674.0,0.04710161]
[1727075210836,0.078519,63675.0,63673.0,0.04710161]
[1727075210837,0.158519,63675.0,63673.0,0.04710161]
[1727075211046,0.078523,63672.0,63671.0,0.04710161]
[1727075211755,0.15822405,63674.0,63671.0,0.04710161]
[1727075211932,0.08,63674.0,63672.0,0.04710161]
[1727075212137,0.08,63673.0,63672.0,0.04710161]
[1727075214438,0.002,63673.0,63672.0,0.002]
[1727075214653,0.002,63673.0,63672.0,0.18343252]
[1727075214846,0.002,63673.0,63672.0,0.23173252]
[1727075215046,0.002,63673.0,63672.0,0.32592049]
[1727075215450,0.004,63673.0,63672.0,0.32592049]
[1727075216856,0.004,63673.0,63672.0,0.23173252]
[1727075217441,0.004,63673.0,63672.0,0.23152518]
[1727075219242,0.082522,63673.0,63672.0,0.15300218]
[1727075219456,0.082522,63673.0,63672.0,0.10470218]
[1727075220842,0.082522,63673.0,63672.0,0.46550218]
[1727075221050,0.082522,63673.0,63672.0,0.4654784]
[1727075221864,0.082522,63673.0,63672.0,0.42561003]
[1727075223053,0.082522,63673.0,63672.0,0.3628]
[1727075224385,0.16074605,63673.0,63672.0,0.3628]
[1727075226172,0.16074605,63673.0,63672.0,0.002]
[1727075226376,0.082522,63673.0,63672.0,0.002]
[1727075228167,0.16074605,63673.0,63672.0,0.002]
[1727075228672,0.082522,63673.0,63672.0,0.002]
[1727075229267,0.16071337,63673.0,63672.0,0.002]
[1727075229471,0.23923537,63673.0,63672.0,0.002]
[1727075229670,0.28052016,63673.0,63672.0,0.002]
[1727075229969,0.161044,63673.0,63672.0,0.002]
[1727075231068,0.521844,63673.0,63672.0,0.002]
[1727075232179,1.593004,63673.0,63672.0,0.002]
[1727075233673,0.601844,63673.0,63672.0,0.002]
[1727075233874,1.673004,63673.0,63672.0,0.002]
[1727075235386,1.073004,63673.0,63672.0,0.002]
[1727075235586,1.673004,63673.0,63672.0,0.002]
[1727075235784,0.078528,63668.0,63667.0,0.04710755]
[1727075236091,0.158528,63668.0,63667.0,0.04710755]
[1727075236483,0.237056,63668.0,63667.0,0.04710755]
[1727075236677,0.078529,63667.0,63666.0,0.04710755]
[1727075236989,0.078534,63663.0,63662.0,0.04710755]
[1727075237191,0.078535,63662.0,63661.0,0.40790755]
[1727075237377,0.078535,63662.0,63661.0,0.3608]
[1727075237881,0.078535,63662.0,63661.0,0.40784692]
[1727075239382,0.078535,63662.0,63661.0,0.41184692]
[1727075240184,0.078535,63662.0,63661.0,0.05104692]
[1727075240384,0.078535,63662.0,63661.0,0.41184692]
[1727075240889,0.078535,63662.0,63661.0,0.41684692]
[1727075244583,0.078535,63662.0,63661.0,0.009]
[1727075245887,0.078535,63662.0,63661.0,0.07172443]
[1727075246079,0.078535,63662.0,63661.0,0.009]
[1727075246988,0.078535,63662.0,63661.0,0.07173272]
[1727075247291,0.078549,63651.0,63650.0,0.0078]
[1727075247491,0.078549,63651.0,63644.0,0.0488]
[1727075247492,0.08,63651.0,63642.0,0.3616]
[1727075247686,0.08,63643.0,63642.0,0.3608]
[1727075248181,0.08,63643.0,63635.0,0.44011254]
[1727075248387,0.08,63636.0,63635.0,0.3608]
[1727075249684,0.08,63636.0,63631.0,0.0934]
[1727075249886,0.08,63632.0,63631.0,0.0934]
[1727075251090,0.081,63632.0,63631.0,0.1074]
[1727075251691,0.082,63632.0,63631.0,0.1214]
[1727075252278,0.082,63632.0,63631.0,0.1164]
[1727075253593,0.081,63632.0,63631.0,0.1024]
[1727075253782,0.082,63632.0,63631.0,0.1114]
[1727075255291,0.160572,63632.0,63631.0,0.018]
[1727075265297,0.205972,63632.0,63631.0,0.018]
[1727075265508,0.284544,63632.0,63631.0,0.018]
[1727075267797,0.205972,63632.0,63631.0,0.018]
[1727075270103,0.160572,63632.0,63631.0,0.018]
[1727075271396,0.080572,63632.0,63631.0,0.018]
[1727075271601,0.160572,63632.0,63631.0,0.018]
[1727075272504,0.082,63632.0,63631.0,0.3788]
[1727075273906,0.002,63632.0,63631.0,0.3788]
[1727075274415,0.082,63632.0,63631.0,0.3788]
[1727075276506,0.160572,63632.0,63631.0,0.3788]
[1727075277511,0.521372,63632.0,63631.0,0.018]
[1727075277717,0.521372,63632.0,63630.0,0.0492]
[1727075277718,0.521372,63632.0,63624.0,0.07851254]
[1727075277911,0.521372,63632.0,63620.0,0.09418797]
[1727075277912,0.08,63625.0,63619.0,0.07851254]
[1727075278112,0.08,63625.0,63611.0,0.124297]
[1727075278113,0.078596,63614.0,63610.0,0.07851254]
[1727075278417,0.078596,63614.0,63608.0,0.3723]
[1727075278418,0.08,63611.0,63609.0,0.3608]
[1727075279413,0.08,63611.0,63604.0,0.07851254]
[1727075279615,0.08,63607.0,63599.0,0.12491254]
[1727075279826,0.08,63600.0,63599.0,0.0464]
[1727075280305,0.078606,63605.0,63599.0,0.0464]
[1727075280513,0.13,63603.0,63599.0,0.0464]
[1727075280708,0.0479,63610.0,63600.0,0.07851254]
[1727075280709,0.13,63607.0,63600.0,0.07851254]
[1727075281312,0.13,63607.0,63599.0,0.0504]
[1727075281313,0.001,63600.0,63599.0,0.0544]
[1727075281506,0.001,63600.0,63598.0,0.07841977]
[1727075281708,0.3608,63599.0,63598.0,0.078614]
[1727075281907,0.30573605,63599.0,63598.0,0.078614]
[1727075282608,0.001,63600.0,63598.0,1.150334]
[1727075282810,0.001,63600.0,63599.0,0.13]
[1727075283015,0.001,63600.0,63599.0,0.60172]
[1727075283319,0.001,63600.0,63599.0,1.20172]
[1727075284026,0.001,63600.0,63599.0,1.07172]
[1727075284414,0.3608,63605.0,63599.0,1.07172]
[1727075284415,0.439406,63605.0,63599.0,1.150333]
[1727075284713,0.439406,63605.0,63599.0,0.175613]
[1727075284913,0.439406,63605.0,63600.0,0.078611]
[1727075285116,0.3608,63605.0,63603.0,0.078608]
[1727075285721,0.3618,63605.0,63603.0,0.078608]
[1727075286126,0.3628,63605.0,63603.0,0.078608]
[1727075286609,0.4928,63605.0,63600.0,0.008]
[1727075286811,0.13,63601.0,63574.0,0.00088]
[1727075287017,0.3608,63587.0,63571.0,0.04984]
[1727075287216,0.3608,63587.0,63571.0,0.049]
[1727075287217,0.3608,63580.0,63571.0,0.049]
[1727075287730,0.439437,63580.0,63575.0,0.078643]
[1727075288221,0.078629,63586.0,63579.0,0.078638]
[1727075288526,0.078629,63586.0,63580.0,0.047]
[1727075288713,0.13,63591.0,63580.0,0.047]
[1727075288714,0.078624,63590.0,63581.0,0.47184]
[1727075288913,0.3608,63587.0,63584.0,0.078631]
[1727075289126,0.078624,63590.0,63585.0,0.049]
[1727075289440,0.3608,63596.0,63585.0,0.049]
[1727075289441,0.569428,63587.0,63585.0,0.049]
[1727075289724,0.078642,63576.0,63575.0,0.005]
[1727075290019,0.3608,63576.0,63575.0,0.005]
[1727075290629,0.439442,63576.0,63575.0,0.005]
[1727075290826,0.439442,63576.0,63569.0,0.078649]
[1727075290827,0.078643,63575.0,63569.0,0.078649]
[1727075291513,0.078643,63575.0,63568.0,0.3608]
[1727075291514,0.078643,63575.0,63570.0,0.078649]
[1727075292131,0.07865,63569.0,63562.0,0.0008]
[1727075292337,0.07866,63562.0,63544.0,0.439481]
[1727075292516,0.4908,63563.0,63544.0,0.439481]
[1727075292517,0.13,63548.0,63544.0,0.3608]
[1727075292716,0.078676,63549.0,63544.0,0.3608]
[1727075292916,0.3608,63554.0,63544.0,0.3608]
[1727075292917,0.078673,63551.0,63544.0,0.3608]
[1727075293418,0.13,63553.0,63538.0,0.13]
[1727075293724,0.078672,63552.0,63543.0,0.078682]
[1727075293929,0.078672,63552.0,63546.0,0.13]
[1727075294223,0.078671,63553.0,63539.0,0.0453]
[1727075294427,0.078671,63553.0,63527.0,0.3608]
[1727075294428,0.13,63540.0,63527.0,0.3608]
[1727075294724,0.3608,63530.0,63526.0,0.07868]
[1727075295122,0.208698,63531.0,63526.0,0.07868]
[1727075295527,0.208698,63531.0,63522.0,0.07868]
[1727075296427,0.13,63526.0,63522.0,0.07868]
[1727075296629,0.4908,63530.0,63522.0,0.07868]
[1727075297015,0.571499,63530.0,63526.0,0.002]
[1727075297419,0.570499,63530.0,63526.0,0.001]
[1727075297620,0.440499,63530.0,63526.0,0.001]
[1727075297829,0.3618,63530.0,63526.0,0.20868]
[1727075298129,0.3618,63530.0,63529.0,0.13]
[1727075298321,0.0079,63542.0,63529.0,0.13]
[1727075298526,0.3608,63543.0,63541.0,0.13]
[1727075298729,0.3608,63543.0,63541.0,0.208684]
[1727075300132,0.3608,63543.0,63541.0,0.209684]
[1727075300133,0.3618,63543.0,63541.0,0.209684]
[1727075300718,0.3628,63543.0,63541.0,0.211684]
[1727075301521,0.60216,63542.0,63523.0,0.07868]
[1727075301726,0.3608,63527.0,63523.0,0.07868]
[1727075302027,0.3608,63534.0,63526.0,0.07868]
[1727075303031,0.3608,63534.0,63528.0,0.0787]
[1727075303731,0.3608,63534.0,63525.0,0.07868]
[1727075303732,0.078695,63533.0,63525.0,0.07868]
[1727075304329,0.078695,63533.0,63526.0,0.07868]
[1727075304520,0.078695,63533.0,63528.0,0.078701]
[1727075305030,0.3628,63534.0,63526.0,0.07868]
[1727075305237,0.3608,63527.0,63526.0,0.07868]
[1727075305419,1.039502,63527.0,63526.0,0.07868]
[1727075305626,1.511742,63527.0,63526.0,0.07868]
[1727075306328,0.439502,63527.0,63526.0,0.07868]
[1727075307228,0.3608,63527.0,63526.0,0.07868]
[1727075307526,0.3618,63527.0,63526.0,0.07868]
[1727075307723,0.3618,63527.0,63526.0,0.157383]
[1727075307923,0.30767706,63527.0,63526.0,0.157383]
[1727075308731,0.30767706,63527.0,63526.0,1.229623]
[1727075308921,0.3608,63540.0,63536.0,0.07869]
[1727075309123,0.078698,63531.0,63526.0,0.07868]
[1727075309325,0.078698,63531.0,63526.0,0.157383]
[1727075309931,0.078699,63530.0,63526.0,0.157383]
[1727075310636,0.078699,63530.0,63527.0,0.078702]
[1727075310837,0.078699,63530.0,63526.0,0.07868]
[1727075311033,0.001,63530.0,63529.0,0.078699]
[1727075311924,0.30768124,63534.0,63533.0,0.078695]
[1727075312733,0.26043697,63534.0,63533.0,0.078695]
[1727075312932,0.181697,63534.0,63533.0,0.078695]
[1727075314027,0.001,63534.0,63533.0,0.080695]
[1727075314225,0.3608,63546.0,63545.0,0.07868]
[1727075315942,0.3618,63546.0,63545.0,0.08268]
[1727075316330,0.3608,63557.0,63545.0,0.004]
[1727075316641,0.3608,63557.0,63555.0,0.078667]
[1727075317434,0.3618,63557.0,63555.0,0.078667]
[1727075317638,0.3628,63557.0,63550.0,0.06246679]
[1727075317941,0.078666,63556.0,63553.0,0.07867]
[1727075318446,0.078666,63556.0,63555.0,0.003]
[1727075319647,0.3628,63557.0,63555.0,0.081668]
[1727075319944,0.3618,63557.0,63556.0,0.14127012]
[1727075320146,0.3618,63557.0,63556.0,0.078666]
[1727075320341,0.3618,63557.0,63556.0,0.17564978]
[1727075320840,0.3628,63557.0,63556.0,0.17564978]
[1727075321551,0.3628,63557.0,63556.0,0.26864524]
[1727075321740,0.3628,63557.0,63556.0,0.17764978]
[1727075322440,0.3608,63570.0,63556.0,0.76921804]
[1727075322633,0.3608,63570.0,63567.0,0.06266615]
[1727075322832,0.3608,63570.0,63568.0,0.06266615]
[1727075323034,0.3608,63570.0,63569.0,0.06266615]
[1727075323431,0.3608,63570.0,63568.0,0.06266615]
[1727075323635,0.3628,63570.0,63567.0,0.14131915]
[1727075323831,0.3628,63570.0,63568.0,0.06266615]
[1727075324237,0.3628,63570.0,63569.0,0.004]
[1727075324446,0.3628,63570.0,63569.0,0.006]
[1727075324447,0.4928,63570.0,63569.0,0.006]
[1727075324642,0.002,63570.0,63569.0,0.14731615]
[1727075324865,0.3608,63575.0,63574.0,0.078644]
[1727075326244,0.3608,63575.0,63574.0,0.15690726]
[1727075326446,0.3608,63575.0,63574.0,0.128044]
[1727075327041,0.4918,63575.0,63574.0,0.082644]
[1727075327347,0.4928,63575.0,63574.0,0.096644]
[1727075328148,0.4928,63575.0,63574.0,0.018]
[1727075328450,0.571443,63575.0,63574.0,0.018]
[1727075329153,0.571443,63575.0,63558.0,0.09399922]
[1727075329154,1.92548,63575.0,63564.0,0.06252791]
[1727075329339,0.3608,63565.0,63555.0,0.14119491]
[1727075329647,0.13,63559.0,63555.0,0.078667]
[1727075330449,0.078661,63560.0,63555.0,0.082667]
[1727075330450,0.19,63558.0,63555.0,0.082667]
[1727075331053,0.19,63558.0,63555.0,0.096667]
[1727075331463,0.080663,63559.0,63555.0,0.096667]
[1727075331753,0.080663,63559.0,63555.0,0.018]
[1727075331754,0.078665,63557.0,63555.0,0.018]
[1727075332856,0.0459,63558.0,63555.0,0.014]
[1727075333158,0.0469,63558.0,63555.0,0.014]
[1727075333358,0.0469,63558.0,63555.0,0.004]
[1727075333359,0.001,63557.0,63555.0,0.004]
[1727075333753,0.002,63557.0,63555.0,0.004]
[1727075333954,0.001,63557.0,63555.0,0.082667]
[1727075334147,0.001,63557.0,63556.0,0.078666]
[1727075334641,0.002,63557.0,63556.0,0.078666]
[1727075335158,0.002,63557.0,63553.0,0.06488802]
[1727075335350,0.002,63557.0,63553.0,0.00236011]
[1727075335551,0.002,63557.0,63553.0,0.08103011]
[1727075335947,0.002,63557.0,63554.0,0.078669]
[1727075336153,0.001,63557.0,63553.0,0.06488802]
[1727075336462,0.002,63557.0,63556.0,0.082666]
[1727075336651,0.002,63557.0,63556.0,0.14519391]
[1727075336856,0.002,63557.0,63556.0,0.14122886]
[1727075337251,0.002,63557.0,63556.0,0.078666]
[1727075337554,0.002,63557.0,63556.0,0.14122886]
[1727075337756,0.002,63557.0,63556.0,0.078666]
[1727075338055,0.002,63557.0,63556.0,0.082666]
[1727075338457,0.002,63557.0,63556.0,0.14522886]
[1727075338954,0.002,63557.0,63556.0,0.082666]
[1727075339155,0.002,63557.0,63556.0,0.14526878]
[1727075339362,0.002,63557.0,63556.0,0.082666]
[1727075340658,0.002,63557.0,63556.0,0.25793278]
[1727075340862,0.439455,63565.0,63562.0,0.078659]
[1727075341447,0.439455,63565.0,63562.0,0.14130563]
[1727075341666,0.3608,63565.0,63562.0,0.06264663]
[1727075341847,0.3608,63565.0,63564.0,0.078656]
[1727075342051,0.3608,63565.0,63564.0,0.14130263]
[1727075342262,0.41360037,63575.0,63570.0,0.078648]
[1727075342263,0.078646,63573.0,63570.0,0.078648]
[1727075342460,0.078646,63573.0,63571.0,0.06266571]
[1727075342655,0.078646,63573.0,63572.0,0.06266571]
[1727075342857,0.078646,63573.0,63572.0,0.078647]
[1727075343160,0.3608,63575.0,63568.0,0.43910829]
[1727075343369,0.439444,63575.0,63573.0,0.078645]
[1727075344063,0.3608,63575.0,63574.0,0.078644]
[1727075344457,0.3618,63575.0,63574.0,0.078644]
[1727075344665,0.3628,63575.0,63574.0,0.078644]
[1727075345260,0.3628,63575.0,63574.0,0.080644]
[1727075346164,0.3628,63575.0,63574.0,0.085644]
[1727075346462,0.441443,63575.0,63574.0,0.007]
[1727075347572,0.078647,63572.0,63570.0,0.06270349]
[1727075347757,0.078651,63568.0,63567.0,0.06270349]
[1727075347951,0.078651,63568.0,63563.0,0.07830829]
[1727075347952,0.078653,63567.0,63566.0,0.06270349]
[1727075348761,0.078653,63567.0,63562.0,0.43910829]
[1727075348762,1.26196,63567.0,63562.0,0.07918829]
[1727075348965,1.26196,63567.0,63558.0,0.09399922]
[1727075348966,0.3608,63563.0,63558.0,0.07830829]
[1727075349264,0.3608,63563.0,63557.0,0.078665]
[1727075349265,0.439458,63563.0,63557.0,0.078665]
[1727075350158,0.078659,63562.0,63557.0,0.078665]
[1727075350357,0.078661,63561.0,63557.0,0.079665]
[1727075350856,0.078664,63558.0,63557.0,0.001]
[1727075351453,0.078664,63558.0,63553.0,0.0806684]
[1727075351653,0.078664,63558.0,63553.0,0.00236011]
[1727075352368,0.208664,63558.0,63553.0,0.00236011]
[1727075352763,0.208664,63558.0,63553.0,0.08103011]
[1727075353068,0.209664,63558.0,63557.0,0.001]
[1727075353571,0.209664,63558.0,63553.0,0.00236011]
[1727075353572,0.078664,63558.0,63553.0,0.00236011]
[1727075353760,0.079664,63558.0,63553.0,0.00336011]
[1727075353963,0.080664,63558.0,63553.0,0.00336011]
[1727075354267,0.078666,63556.0,63553.0,0.00236011]
[1727075354467,0.078666,63556.0,63553.0,0.08103011]
[1727075354876,0.078666,63556.0,63554.0,0.078669]
[1727075355371,0.078666,63556.0,63555.0,0.078668]
[1727075356468,0.079666,63556.0,63555.0,0.078668]
[1727075356965,0.080666,63556.0,63555.0,0.078668]
[1727075357363,0.080666,63556.0,63555.0,0.25386161]
[1727075357755,0.002,63556.0,63555.0,0.15697629]
[1727075357969,0.002,63556.0,63555.0,0.17549101]
[1727075359863,0.002,63556.0,63555.0,0.17549206]
[1727075360664,0.080666,63556.0,63555.0,0.09682406]
[1727075360875,0.002,63556.0,63553.0,0.07847586]
[1727075361071,0.078669,63554.0,63553.0,0.07847586]
[1727075361377,0.07867,63553.0,63552.0,0.078671]
[1727075361562,0.07867,63553.0,63551.0,0.07847586]
[1727075361563,0.078671,63552.0,63551.0,0.07847586]
[1727075361763,0.07867,63553.0,63549.0,0.12477586]
[1727075361972,0.208674,63550.0,63549.0,0.07847586]
[1727075362277,0.208674,63550.0,63548.0,0.07847586]
[1727075362278,0.078675,63549.0,63548.0,0.07847586]
[1727075362461,0.078675,63549.0,63548.0,0.1757452]
[1727075363377,0.078675,63549.0,63548.0,0.09726934]
[1727075363673,0.079675,63549.0,63548.0,0.17573621]
[1727075364572,0.079675,63549.0,63548.0,0.07846687]
[1727075364774,0.080675,63549.0,63548.0,0.07846687]
[1727075365376,0.080675,63549.0,63547.0,0.07846687]
[1727075365677,0.080675,63549.0,63545.0,0.07845135]
[1727075365678,0.078679,63546.0,63545.0,0.07845135]
[1727075365873,0.07868,63545.0,63544.0,0.0784529]
[1727075366172,0.07868,63545.0,63543.0,0.00092]
[1727075366173,0.07868,63545.0,63541.0,0.078685]
[1727075367274,0.07968,63545.0,63541.0,0.078685]
[1727075367877,0.08068,63545.0,63541.0,0.078685]
[1727075368267,0.078681,63544.0,63541.0,0.078685]
[1727075368560,0.078682,63543.0,63541.0,0.078685]
[1727075370178,0.079682,63543.0,63541.0,0.078685]
[1727075371465,0.080682,63543.0,63541.0,0.078685]
[1727075371665,0.078686,63540.0,63539.0,0.0485]
[1727075372977,0.079686,63540.0,63539.0,0.0485]
[1727075373861,0.078689,63538.0,63536.0,0.0784529]
[1727075374079,0.07869,63537.0,63535.0,0.1571449]
[1727075374267,0.07869,63537.0,63536.0,0.0784529]
[1727075374775,0.07869,63537.0,63535.0,0.1571449]
[1727075375362,0.07869,63537.0,63533.0,0.3608]
[1727075375363,0.001,63540.0,63536.0,0.0974645]
[1727075375571,0.07869,63537.0,63536.0,0.07840662]
[1727075375774,0.078691,63536.0,63535.0,0.07840662]
[1727075375971,0.078691,63536.0,63535.0,0.17592388]
[1727075376371,0.078691,63536.0,63535.0,0.09751726]
[1727075377670,0.079691,63536.0,63535.0,0.09751726]
[1727075378372,0.079691,63536.0,63535.0,0.09760726]
[1727075378977,0.080691,63536.0,63535.0,0.09760726]
[1727075379777,0.002,63536.0,63535.0,0.09760726]
[1727075379978,0.002,63536.0,63535.0,0.17629926]
[1727075380281,0.078686,63541.0,63535.0,0.09760726]
[1727075380476,0.078686,63541.0,63540.0,0.07845925]
[1727075380780,0.078686,63541.0,63540.0,0.09760726]
[1727075380975,0.3608,63543.0,63542.0,0.078684]
[1727075381172,0.3608,63543.0,63542.0,0.28714235]
[1727075381373,0.3608,63543.0,63542.0,0.30609768]
[1727075381773,0.3608,63543.0,63542.0,0.40024879]
[1727075382379,0.3608,63543.0,63542.0,0.30609768]
[1727075382882,0.3608,63543.0,63542.0,0.30596936]
[1727075383079,0.3618,63543.0,63542.0,0.30696936]
[1727075383485,0.3628,63543.0,63542.0,0.30796936]
[1727075384279,0.078686,63540.0,63533.0,0.07847171]
[1727075384479,1.56492,63543.0,63533.0,0.07847171]
[1727075384480,0.4908,63534.0,63533.0,0.07847171]
[1727075384683,0.4908,63534.0,63531.0,0.07847171]
[1727075385281,0.078696,63532.0,63531.0,0.07847171]
[1727075385884,0.078696,63532.0,63531.0,0.17634175]
[1727075386170,0.078696,63532.0,63526.0,0.45496593]
[1727075386171,0.078697,63531.0,63530.0,0.07847171]
[1727075386372,0.001,63532.0,63530.0,0.09791371]
[1727075386583,0.001,63532.0,63531.0,0.17653753]
[1727075387084,0.002,63532.0,63531.0,0.17653753]
[1727075387489,0.002,63532.0,63531.0,0.17641774]
[1727075390281,0.002,63532.0,63531.0,0.27058367]
[1727075390685,0.002,63532.0,63531.0,0.40058367]
[1727075390885,0.002,63532.0,63531.0,0.76138367]
[1727075391085,0.13,63548.0,63538.0,0.078688]
[1727075391281,0.00236137,63547.0,63541.0,0.07852623]
[1727075391481,0.439483,63543.0,63542.0,0.17604775]
[1727075391887,0.439483,63543.0,63542.0,0.17620552]
[1727075392194,0.3608,63543.0,63542.0,0.17615386]
[1727075392581,0.3618,63543.0,63542.0,0.17615386]
[1727075393083,0.3628,63543.0,63542.0,0.17615386]
[1727075393681,0.3628,63543.0,63542.0,0.17715386]
[1727075393887,0.3628,63543.0,63542.0,0.17815386]
[1727075396284,0.3628,63543.0,63542.0,0.27243978]
[1727075396897,0.3628,63543.0,63542.0,0.17818375]
[1727075397279,0.3628,63543.0,63542.0,0.27246956]
[1727075399187,0.002,63543.0,63542.0,0.27246956]
[1727075399391,1.07412,63543.0,63541.0,0.09428581]
[1727075399594,0.730604,63542.0,63528.0,0.10873386]
[1727075399781,0.13,63529.0,63525.0,0.11000642]
[1727075399988,0.078702,63527.0,63526.0,0.11659867]